Workbook

Sheet Worksheet
E1: Liquidity Verification - Statement Details | G1: Key: | H1: Enter Data | I1: Do Not Fill In | J1: Auto-Calculated | M1: Publication Date: | N1: 2025-12-16
E2: [If more than 10 Key Borrower Principals (KBP) require verification, use a second worksheet]
E3: Notes: | F3: If Percentage of Certified Financial Statement (CFS) Liquidity < 75% this is considered a material deviation and additional explanation (including rationale for acceptability) is required in the Comments field
F4: When summarizing the statement information, enter either the 3 months of liquidity information or the Training 12-month information for each account, depending on the format of the information received (Note the "[OR]" below).
E6: Input # KBPs (1-10) | F6: 3
B9: Show/Hide
B10: =IF(C10<=$F$6,"Show","Hide") -> Show | C10: 1 | M10: Trailing 12 Months (dated within 60 days of package submission)
B11: Show | C11: 1 | D11: KBP 1 | E11: [Individual / Entity] | H11: 3 consecutive months (most recent dated within 60 days of package submission) | L11: [ OR ] | P11: Notes
B12: Show | C12: 1 | E12: Bank / Brokerage Statements | H12: [DATE] | I12: [DATE] | J12: [DATE] | K12: AVERAGE | M12: [DATE] | N12: Certified Financial Statement | O12: [DATE]
B13: =IF(C13<=$F$6,"Show","Hide") -> Show | C13: 1 | E13: [Name on Account] | F13: [Bank/Brokerage Name] | G13: [Account Type] | H13: 0 | I13: 0 | J13: 0 | M13: 0
B14: Show | C14: 1 | E14: [Name on Account] | F14: [Bank/Brokerage Name] | G14: [Account Type] | H14: 0 | I14: 0 | J14: 0 | M14: 0
B15: Show | C15: 1 | E15: [Name on Account] | F15: [Bank/Brokerage Name] | G15: [Account Type] | H15: 0 | I15: 0 | J15: 0 | M15: 0
B16: Show | C16: 1 | E16: [Name on Account] | F16: [Bank/Brokerage Name] | G16: [Account Type] | H16: 0 | I16: 0 | J16: 0 | M16: 0
B17: Show | C17: 1 | E17: [Name on Account] | F17: [Bank/Brokerage Name] | G17: [Account Type] | H17: 0 | I17: 0 | J17: 0 | M17: 0
B18: Show | C18: 1 | E18: [Name on Account] | F18: [Bank/Brokerage Name] | G18: [Account Type] | H18: 0 | I18: 0 | J18: 0 | M18: 0
B19: Show | C19: 1 | E19: [Name on Account] | F19: [Bank/Brokerage Name] | G19: [Account Type] | H19: 0 | I19: 0 | J19: 0 | M19: 0
B20: Show | C20: 1 | E20: [Name on Account] | F20: [Bank/Brokerage Name] | G20: [Account Type] | H20: 0 | I20: 0 | J20: 0 | M20: 0
B21: Show | C21: 1 | E21: [Name on Account] | F21: [Bank/Brokerage Name] | G21: [Account Type] | H21: 0 | I21: 0 | J21: 0 | M21: 0
B22: Show | C22: 1 | E22: [Name on Account] | F22: [Bank/Brokerage Name] | G22: [Account Type] | H22: 0 | I22: 0 | J22: 0 | M22: 0
B23: Show | C23: 1 | H23: =SUM(H13:H22) -> 0 | I23: =SUM(I13:I22) -> 0 | J23: =SUM(J13:J22) -> 0 | K23: =AVERAGE(H23:J23) -> 0 | M23: =SUM(M13:M22) -> 0 | O23: 0
B24: Show | C24: 1 | P24: Comments
B25: Show | C25: 1 | K25: Percentage of CFS Liquidity | L25: =IFERROR((K23+M23)/O23,0) -> 0
B26: Show | C26: 1
B27: Show | C27: 2 | M27: Trailing 12 Months (dated within 60 days of package submission)
B28: Show | C28: 2 | D28: KBP 2 | E28: [Individual / Entity] | H28: 3 consecutive months (most recent dated within 60 days of package submission) | L28: [ OR ] | P28: Notes
B29: Show | C29: 2 | E29: Bank / Brokerage Statements | H29: [DATE] | I29: [DATE] | J29: [DATE] | K29: AVERAGE | M29: [DATE] | N29: Certified Financial Statement | O29: [DATE]
B30: =IF(C30<=$F$6,"Show","Hide") -> Show | C30: 2 | E30: [Name on Account] | F30: [Bank/Brokerage Name] | G30: [Account Type] | H30: 0 | I30: 0 | J30: 0 | M30: 0
B31: Show | C31: 2 | E31: [Name on Account] | F31: [Bank/Brokerage Name] | G31: [Account Type] | H31: 0 | I31: 0 | J31: 0 | M31: 0
B32: Show | C32: 2 | E32: [Name on Account] | F32: [Bank/Brokerage Name] | G32: [Account Type] | H32: 0 | I32: 0 | J32: 0 | M32: 0
B33: Show | C33: 2 | E33: [Name on Account] | F33: [Bank/Brokerage Name] | G33: [Account Type] | H33: 0 | I33: 0 | J33: 0 | M33: 0
B34: Show | C34: 2 | E34: [Name on Account] | F34: [Bank/Brokerage Name] | G34: [Account Type] | H34: 0 | I34: 0 | J34: 0 | M34: 0
B35: Show | C35: 2 | E35: [Name on Account] | F35: [Bank/Brokerage Name] | G35: [Account Type] | H35: 0 | I35: 0 | J35: 0 | M35: 0
B36: Show | C36: 2 | E36: [Name on Account] | F36: [Bank/Brokerage Name] | G36: [Account Type] | H36: 0 | I36: 0 | J36: 0 | M36: 0
B37: Show | C37: 2 | E37: [Name on Account] | F37: [Bank/Brokerage Name] | G37: [Account Type] | H37: 0 | I37: 0 | J37: 0 | M37: 0
B38: Show | C38: 2 | E38: [Name on Account] | F38: [Bank/Brokerage Name] | G38: [Account Type] | H38: 0 | I38: 0 | J38: 0 | M38: 0
B39: Show | C39: 2 | E39: [Name on Account] | F39: [Bank/Brokerage Name] | G39: [Account Type] | H39: 0 | I39: 0 | J39: 0 | M39: 0
B40: Show | C40: 2 | H40: =SUM(H30:H39) -> 0 | I40: =SUM(I30:I39) -> 0 | J40: =SUM(J30:J39) -> 0 | K40: =AVERAGE(H40:J40) -> 0 | M40: =SUM(M30:M39) -> 0 | O40: 0
B41: Show | C41: 2 | P41: Comments
B42: Show | C42: 2 | K42: Percentage of CFS Liquidity | L42: =IFERROR((K40+M40)/O40,0) -> 0
B43: Show | C43: 2
B44: Show | C44: 3 | M44: Trailing 12 Months (dated within 60 days of package submission)
B45: Show | C45: 3 | D45: KBP 3 | E45: [Individual / Entity] | H45: 3 consecutive months (most recent dated within 60 days of package submission) | L45: [ OR ] | P45: Notes
B46: Show | C46: 3 | E46: Bank / Brokerage Statements | H46: [DATE] | I46: [DATE] | J46: [DATE] | K46: AVERAGE | M46: [DATE] | N46: Certified Financial Statement | O46: [DATE]
B47: =IF(C47<=$F$6,"Show","Hide") -> Show | C47: 3 | E47: [Name on Account] | F47: [Bank/Brokerage Name] | G47: [Account Type] | H47: 0 | I47: 0 | J47: 0 | M47: 0
B48: Show | C48: 3 | E48: [Name on Account] | F48: [Bank/Brokerage Name] | G48: [Account Type] | H48: 0 | I48: 0 | J48: 0 | M48: 0
B49: Show | C49: 3 | E49: [Name on Account] | F49: [Bank/Brokerage Name] | G49: [Account Type] | H49: 0 | I49: 0 | J49: 0 | M49: 0
B50: Show | C50: 3 | E50: [Name on Account] | F50: [Bank/Brokerage Name] | G50: [Account Type] | H50: 0 | I50: 0 | J50: 0 | M50: 0
B51: Show | C51: 3 | E51: [Name on Account] | F51: [Bank/Brokerage Name] | G51: [Account Type] | H51: 0 | I51: 0 | J51: 0 | M51: 0
B52: Show | C52: 3 | E52: [Name on Account] | F52: [Bank/Brokerage Name] | G52: [Account Type] | H52: 0 | I52: 0 | J52: 0 | M52: 0
B53: Show | C53: 3 | E53: [Name on Account] | F53: [Bank/Brokerage Name] | G53: [Account Type] | H53: 0 | I53: 0 | J53: 0 | M53: 0
B54: Show | C54: 3 | E54: [Name on Account] | F54: [Bank/Brokerage Name] | G54: [Account Type] | H54: 0 | I54: 0 | J54: 0 | M54: 0
B55: Show | C55: 3 | E55: [Name on Account] | F55: [Bank/Brokerage Name] | G55: [Account Type] | H55: 0 | I55: 0 | J55: 0 | M55: 0
B56: Show | C56: 3 | E56: [Name on Account] | F56: [Bank/Brokerage Name] | G56: [Account Type] | H56: 0 | I56: 0 | J56: 0 | M56: 0
B57: =IF(C57<=$F$6,"Show","Hide") -> Show | C57: 3 | H57: =SUM(H47:H56) -> 0 | I57: =SUM(I47:I56) -> 0 | J57: =SUM(J47:J56) -> 0 | K57: =AVERAGE(H57:J57) -> 0 | M57: =SUM(M47:M56) -> 0 | O57: 0
B58: Show | C58: 3 | P58: Comments
B59: Show | C59: 3 | K59: Percentage of CFS Liquidity | L59: =IFERROR((K57+M57)/O57,0) -> 0
B60: Show | C60: 3
B61: Hide | C61: 4 | M61: Trailing 12 Months (dated within 60 days of package submission)
B62: Hide | C62: 4 | D62: KBP 4 | E62: [Individual / Entity] | H62: 3 consecutive months (most recent dated within 60 days of package submission) | L62: [ OR ] | P62: Notes
B63: Hide | C63: 4 | E63: Bank / Brokerage Statements | H63: [DATE] | I63: [DATE] | J63: [DATE] | K63: AVERAGE | M63: [DATE] | N63: Certified Financial Statement | O63: [DATE]
B64: =IF(C64<=$F$6,"Show","Hide") -> Hide | C64: 4 | E64: [Name on Account] | F64: [Bank/Brokerage Name] | G64: [Account Type] | H64: 0 | I64: 0 | J64: 0 | M64: 0
B65: Hide | C65: 4 | E65: [Name on Account] | F65: [Bank/Brokerage Name] | G65: [Account Type] | H65: 0 | I65: 0 | J65: 0 | M65: 0
B66: Hide | C66: 4 | E66: [Name on Account] | F66: [Bank/Brokerage Name] | G66: [Account Type] | H66: 0 | I66: 0 | J66: 0 | M66: 0
B67: Hide | C67: 4 | E67: [Name on Account] | F67: [Bank/Brokerage Name] | G67: [Account Type] | H67: 0 | I67: 0 | J67: 0 | M67: 0
B68: Hide | C68: 4 | E68: [Name on Account] | F68: [Bank/Brokerage Name] | G68: [Account Type] | H68: 0 | I68: 0 | J68: 0 | M68: 0
B69: Hide | C69: 4 | E69: [Name on Account] | F69: [Bank/Brokerage Name] | G69: [Account Type] | H69: 0 | I69: 0 | J69: 0 | M69: 0
B70: Hide | C70: 4 | E70: [Name on Account] | F70: [Bank/Brokerage Name] | G70: [Account Type] | H70: 0 | I70: 0 | J70: 0 | M70: 0
B71: Hide | C71: 4 | E71: [Name on Account] | F71: [Bank/Brokerage Name] | G71: [Account Type] | H71: 0 | I71: 0 | J71: 0 | M71: 0
B72: Hide | C72: 4 | E72: [Name on Account] | F72: [Bank/Brokerage Name] | G72: [Account Type] | H72: 0 | I72: 0 | J72: 0 | M72: 0
B73: Hide | C73: 4 | E73: [Name on Account] | F73: [Bank/Brokerage Name] | G73: [Account Type] | H73: 0 | I73: 0 | J73: 0 | M73: 0
B74: Hide | C74: 4 | H74: =SUM(H64:H73) -> 0 | I74: =SUM(I64:I73) -> 0 | J74: =SUM(J64:J73) -> 0 | K74: =AVERAGE(H74:J74) -> 0 | M74: =SUM(M64:M73) -> 0 | O74: 0
B75: Hide | C75: 4 | P75: Comments
B76: Hide | C76: 4 | K76: Percentage of CFS Liquidity | L76: =IFERROR((K74+M74)/O74,0) -> 0
B77: Hide | C77: 4
B78: Hide | C78: 5 | M78: Trailing 12 Months (dated within 60 days of package submission)
B79: Hide | C79: 5 | D79: KBP 5 | E79: [Individual / Entity] | H79: 3 consecutive months (most recent dated within 60 days of package submission) | L79: [ OR ] | P79: Notes
B80: Hide | C80: 5 | E80: Bank / Brokerage Statements | H80: [DATE] | I80: [DATE] | J80: [DATE] | K80: AVERAGE | M80: [DATE] | N80: Certified Financial Statement | O80: [DATE]
B81: =IF(C81<=$F$6,"Show","Hide") -> Hide | C81: 5 | E81: [Name on Account] | F81: [Bank/Brokerage Name] | G81: [Account Type] | H81: 0 | I81: 0 | J81: 0 | M81: 0
B82: Hide | C82: 5 | E82: [Name on Account] | F82: [Bank/Brokerage Name] | G82: [Account Type] | H82: 0 | I82: 0 | J82: 0 | M82: 0
B83: Hide | C83: 5 | E83: [Name on Account] | F83: [Bank/Brokerage Name] | G83: [Account Type] | H83: 0 | I83: 0 | J83: 0 | M83: 0
B84: Hide | C84: 5 | E84: [Name on Account] | F84: [Bank/Brokerage Name] | G84: [Account Type] | H84: 0 | I84: 0 | J84: 0 | M84: 0
B85: Hide | C85: 5 | E85: [Name on Account] | F85: [Bank/Brokerage Name] | G85: [Account Type] | H85: 0 | I85: 0 | J85: 0 | M85: 0
B86: Hide | C86: 5 | E86: [Name on Account] | F86: [Bank/Brokerage Name] | G86: [Account Type] | H86: 0 | I86: 0 | J86: 0 | M86: 0
B87: Hide | C87: 5 | E87: [Name on Account] | F87: [Bank/Brokerage Name] | G87: [Account Type] | H87: 0 | I87: 0 | J87: 0 | M87: 0
B88: Hide | C88: 5 | E88: [Name on Account] | F88: [Bank/Brokerage Name] | G88: [Account Type] | H88: 0 | I88: 0 | J88: 0 | M88: 0
B89: Hide | C89: 5 | E89: [Name on Account] | F89: [Bank/Brokerage Name] | G89: [Account Type] | H89: 0 | I89: 0 | J89: 0 | M89: 0
B90: Hide | C90: 5 | E90: [Name on Account] | F90: [Bank/Brokerage Name] | G90: [Account Type] | H90: 0 | I90: 0 | J90: 0 | M90: 0
B91: Hide | C91: 5 | H91: =SUM(H81:H90) -> 0 | I91: =SUM(I81:I90) -> 0 | J91: =SUM(J81:J90) -> 0 | K91: =AVERAGE(H91:J91) -> 0 | M91: =SUM(M81:M90) -> 0 | O91: 0
B92: Hide | C92: 5 | P92: Comments
B93: Hide | C93: 5 | K93: Percentage of CFS Liquidity | L93: =IFERROR((K91+M91)/O91,0) -> 0
B94: Hide | C94: 5
B95: Hide | C95: 6 | M95: Trailing 12 Months (dated within 60 days of package submission)
B96: Hide | C96: 6 | D96: KBP 6 | E96: [Individual / Entity] | H96: 3 consecutive months (most recent dated within 60 days of package submission) | L96: [ OR ] | P96: Notes
B97: Hide | C97: 6 | E97: Bank / Brokerage Statements | H97: [DATE] | I97: [DATE] | J97: [DATE] | K97: AVERAGE | M97: [DATE] | N97: Certified Financial Statement | O97: [DATE]
B98: =IF(C98<=$F$6,"Show","Hide") -> Hide | C98: 6 | E98: [Name on Account] | F98: [Bank/Brokerage Name] | G98: [Account Type] | H98: 0 | I98: 0 | J98: 0 | M98: 0
B99: Hide | C99: 6 | E99: [Name on Account] | F99: [Bank/Brokerage Name] | G99: [Account Type] | H99: 0 | I99: 0 | J99: 0 | M99: 0
B100: Hide | C100: 6 | E100: [Name on Account] | F100: [Bank/Brokerage Name] | G100: [Account Type] | H100: 0 | I100: 0 | J100: 0 | M100: 0
B101: Hide | C101: 6 | E101: [Name on Account] | F101: [Bank/Brokerage Name] | G101: [Account Type] | H101: 0 | I101: 0 | J101: 0 | M101: 0
B102: Hide | C102: 6 | E102: [Name on Account] | F102: [Bank/Brokerage Name] | G102: [Account Type] | H102: 0 | I102: 0 | J102: 0 | M102: 0
B103: Hide | C103: 6 | E103: [Name on Account] | F103: [Bank/Brokerage Name] | G103: [Account Type] | H103: 0 | I103: 0 | J103: 0 | M103: 0
B104: =IF(C104<=$F$6,"Show","Hide") -> Hide | C104: 6 | E104: [Name on Account] | F104: [Bank/Brokerage Name] | G104: [Account Type] | H104: 0 | I104: 0 | J104: 0 | M104: 0
B105: Hide | C105: 6 | E105: [Name on Account] | F105: [Bank/Brokerage Name] | G105: [Account Type] | H105: 0 | I105: 0 | J105: 0 | M105: 0
B106: Hide | C106: 6 | E106: [Name on Account] | F106: [Bank/Brokerage Name] | G106: [Account Type] | H106: 0 | I106: 0 | J106: 0 | M106: 0
B107: Hide | C107: 6 | E107: [Name on Account] | F107: [Bank/Brokerage Name] | G107: [Account Type] | H107: 0 | I107: 0 | J107: 0 | M107: 0
B108: Hide | C108: 6 | H108: =SUM(H98:H107) -> 0 | I108: =SUM(I98:I107) -> 0 | J108: =SUM(J98:J107) -> 0 | K108: =AVERAGE(H108:J108) -> 0 | M108: =SUM(M98:M107) -> 0 | O108: 0
B109: Hide | C109: 6 | P109: Comments
B110: Hide | C110: 6 | K110: Percentage of CFS Liquidity | L110: =IFERROR((K108+M108)/O108,0) -> 0
B111: Hide | C111: 6
B112: Hide | C112: 7 | M112: Trailing 12 Months (dated within 60 days of package submission)
B113: Hide | C113: 7 | D113: KBP 7 | E113: [Individual / Entity] | H113: 3 consecutive months (most recent dated within 60 days of package submission) | L113: [ OR ] | P113: Notes
B114: Hide | C114: 7 | E114: Bank / Brokerage Statements | H114: [DATE] | I114: [DATE] | J114: [DATE] | K114: AVERAGE | M114: [DATE] | N114: Certified Financial Statement | O114: [DATE]
B115: =IF(C115<=$F$6,"Show","Hide") -> Hide | C115: 7 | E115: [Name on Account] | F115: [Bank/Brokerage Name] | G115: [Account Type] | H115: 0 | I115: 0 | J115: 0 | M115: 0
B116: Hide | C116: 7 | E116: [Name on Account] | F116: [Bank/Brokerage Name] | G116: [Account Type] | H116: 0 | I116: 0 | J116: 0 | M116: 0
B117: Hide | C117: 7 | E117: [Name on Account] | F117: [Bank/Brokerage Name] | G117: [Account Type] | H117: 0 | I117: 0 | J117: 0 | M117: 0
B118: Hide | C118: 7 | E118: [Name on Account] | F118: [Bank/Brokerage Name] | G118: [Account Type] | H118: 0 | I118: 0 | J118: 0 | M118: 0
B119: Hide | C119: 7 | E119: [Name on Account] | F119: [Bank/Brokerage Name] | G119: [Account Type] | H119: 0 | I119: 0 | J119: 0 | M119: 0
B120: Hide | C120: 7 | E120: [Name on Account] | F120: [Bank/Brokerage Name] | G120: [Account Type] | H120: 0 | I120: 0 | J120: 0 | M120: 0
B121: Hide | C121: 7 | E121: [Name on Account] | F121: [Bank/Brokerage Name] | G121: [Account Type] | H121: 0 | I121: 0 | J121: 0 | M121: 0
B122: Hide | C122: 7 | E122: [Name on Account] | F122: [Bank/Brokerage Name] | G122: [Account Type] | H122: 0 | I122: 0 | J122: 0 | M122: 0
B123: Hide | C123: 7 | E123: [Name on Account] | F123: [Bank/Brokerage Name] | G123: [Account Type] | H123: 0 | I123: 0 | J123: 0 | M123: 0
B124: Hide | C124: 7 | E124: [Name on Account] | F124: [Bank/Brokerage Name] | G124: [Account Type] | H124: 0 | I124: 0 | J124: 0 | M124: 0
B125: Hide | C125: 7 | H125: =SUM(H115:H124) -> 0 | I125: =SUM(I115:I124) -> 0 | J125: =SUM(J115:J124) -> 0 | K125: =AVERAGE(H125:J125) -> 0 | M125: =SUM(M115:M124) -> 0 | O125: 0
B126: Hide | C126: 7 | P126: Comments
B127: Hide | C127: 7 | K127: Percentage of CFS Liquidity | L127: =IFERROR((K125+M125)/O125,0) -> 0
B128: Hide | C128: 7
B129: Hide | C129: 8 | M129: Trailing 12 Months (dated within 60 days of package submission)
B130: Hide | C130: 8 | D130: KBP 8 | E130: [Individual / Entity] | H130: 3 consecutive months (most recent dated within 60 days of package submission) | L130: [ OR ] | P130: Notes
B131: Hide | C131: 8 | E131: Bank / Brokerage Statements | H131: [DATE] | I131: [DATE] | J131: [DATE] | K131: AVERAGE | M131: [DATE] | N131: Certified Financial Statement | O131: [DATE]
B132: =IF(C132<=$F$6,"Show","Hide") -> Hide | C132: 8 | E132: [Name on Account] | F132: [Bank/Brokerage Name] | G132: [Account Type] | H132: 0 | I132: 0 | J132: 0 | M132: 0
B133: Hide | C133: 8 | E133: [Name on Account] | F133: [Bank/Brokerage Name] | G133: [Account Type] | H133: 0 | I133: 0 | J133: 0 | M133: 0
B134: Hide | C134: 8 | E134: [Name on Account] | F134: [Bank/Brokerage Name] | G134: [Account Type] | H134: 0 | I134: 0 | J134: 0 | M134: 0
B135: Hide | C135: 8 | E135: [Name on Account] | F135: [Bank/Brokerage Name] | G135: [Account Type] | H135: 0 | I135: 0 | J135: 0 | M135: 0
B136: Hide | C136: 8 | E136: [Name on Account] | F136: [Bank/Brokerage Name] | G136: [Account Type] | H136: 0 | I136: 0 | J136: 0 | M136: 0
B137: Hide | C137: 8 | E137: [Name on Account] | F137: [Bank/Brokerage Name] | G137: [Account Type] | H137: 0 | I137: 0 | J137: 0 | M137: 0
B138: Hide | C138: 8 | E138: [Name on Account] | F138: [Bank/Brokerage Name] | G138: [Account Type] | H138: 0 | I138: 0 | J138: 0 | M138: 0
B139: Hide | C139: 8 | E139: [Name on Account] | F139: [Bank/Brokerage Name] | G139: [Account Type] | H139: 0 | I139: 0 | J139: 0 | M139: 0
B140: Hide | C140: 8 | E140: [Name on Account] | F140: [Bank/Brokerage Name] | G140: [Account Type] | H140: 0 | I140: 0 | J140: 0 | M140: 0
B141: Hide | C141: 8 | E141: [Name on Account] | F141: [Bank/Brokerage Name] | G141: [Account Type] | H141: 0 | I141: 0 | J141: 0 | M141: 0
B142: Hide | C142: 8 | H142: =SUM(H132:H141) -> 0 | I142: =SUM(I132:I141) -> 0 | J142: =SUM(J132:J141) -> 0 | K142: =AVERAGE(H142:J142) -> 0 | M142: =SUM(M132:M141) -> 0 | O142: 0
B143: Hide | C143: 8 | P143: Comments
B144: Hide | C144: 8 | K144: Percentage of CFS Liquidity | L144: =IFERROR((K142+M142)/O142,0) -> 0
B145: Hide | C145: 8
B146: =IF(C146<=$F$6,"Show","Hide") -> Hide | C146: 9 | M146: Trailing 12 Months (dated within 60 days of package submission)
B147: Hide | C147: 9 | D147: KBP 9 | E147: [Individual / Entity] | H147: 3 consecutive months (most recent dated within 60 days of package submission) | L147: [ OR ] | P147: Notes
B148: Hide | C148: 9 | E148: Bank / Brokerage Statements | H148: [DATE] | I148: [DATE] | J148: [DATE] | K148: AVERAGE | M148: [DATE] | N148: Certified Financial Statement | O148: [DATE]
B149: =IF(C149<=$F$6,"Show","Hide") -> Hide | C149: 9 | E149: [Name on Account] | F149: [Bank/Brokerage Name] | G149: [Account Type] | H149: 0 | I149: 0 | J149: 0 | M149: 0
B150: Hide | C150: 9 | E150: [Name on Account] | F150: [Bank/Brokerage Name] | G150: [Account Type] | H150: 0 | I150: 0 | J150: 0 | M150: 0
B151: Hide | C151: 9 | E151: [Name on Account] | F151: [Bank/Brokerage Name] | G151: [Account Type] | H151: 0 | I151: 0 | J151: 0 | M151: 0
B152: Hide | C152: 9 | E152: [Name on Account] | F152: [Bank/Brokerage Name] | G152: [Account Type] | H152: 0 | I152: 0 | J152: 0 | M152: 0
B153: Hide | C153: 9 | E153: [Name on Account] | F153: [Bank/Brokerage Name] | G153: [Account Type] | H153: 0 | I153: 0 | J153: 0 | M153: 0
B154: Hide | C154: 9 | E154: [Name on Account] | F154: [Bank/Brokerage Name] | G154: [Account Type] | H154: 0 | I154: 0 | J154: 0 | M154: 0
B155: Hide | C155: 9 | E155: [Name on Account] | F155: [Bank/Brokerage Name] | G155: [Account Type] | H155: 0 | I155: 0 | J155: 0 | M155: 0
B156: Hide | C156: 9 | E156: [Name on Account] | F156: [Bank/Brokerage Name] | G156: [Account Type] | H156: 0 | I156: 0 | J156: 0 | M156: 0
B157: Hide | C157: 9 | E157: [Name on Account] | F157: [Bank/Brokerage Name] | G157: [Account Type] | H157: 0 | I157: 0 | J157: 0 | M157: 0
B158: Hide | C158: 9 | E158: [Name on Account] | F158: [Bank/Brokerage Name] | G158: [Account Type] | H158: 0 | I158: 0 | J158: 0 | M158: 0
B159: Hide | C159: 9 | H159: =SUM(H149:H158) -> 0 | I159: =SUM(I149:I158) -> 0 | J159: =SUM(J149:J158) -> 0 | K159: =AVERAGE(H159:J159) -> 0 | M159: =SUM(M149:M158) -> 0 | O159: 0
B160: Hide | C160: 9 | P160: Comments
B161: Hide | C161: 9 | K161: Percentage of CFS Liquidity | L161: =IFERROR((K159+M159)/O159,0) -> 0
B162: Hide | C162: 9
B163: Hide | C163: 10 | M163: Trailing 12 Months (dated within 60 days of package submission)
B164: Hide | C164: 10 | D164: KBP 10 | E164: [Individual / Entity] | H164: 3 consecutive months (most recent dated within 60 days of package submission) | L164: [ OR ] | P164: Notes
B165: Hide | C165: 10 | E165: Bank / Brokerage Statements | H165: [DATE] | I165: [DATE] | J165: [DATE] | K165: AVERAGE | M165: [DATE] | N165: Certified Financial Statement | O165: [DATE]
B166: =IF(C166<=$F$6,"Show","Hide") -> Hide | C166: 10 | E166: [Name on Account] | F166: [Bank/Brokerage Name] | G166: [Account Type] | H166: 0 | I166: 0 | J166: 0 | M166: 0
B167: Hide | C167: 10 | E167: [Name on Account] | F167: [Bank/Brokerage Name] | G167: [Account Type] | H167: 0 | I167: 0 | J167: 0 | M167: 0
B168: Hide | C168: 10 | E168: [Name on Account] | F168: [Bank/Brokerage Name] | G168: [Account Type] | H168: 0 | I168: 0 | J168: 0 | M168: 0
B169: Hide | C169: 10 | E169: [Name on Account] | F169: [Bank/Brokerage Name] | G169: [Account Type] | H169: 0 | I169: 0 | J169: 0 | M169: 0
B170: Hide | C170: 10 | E170: [Name on Account] | F170: [Bank/Brokerage Name] | G170: [Account Type] | H170: 0 | I170: 0 | J170: 0 | M170: 0
B171: Hide | C171: 10 | E171: [Name on Account] | F171: [Bank/Brokerage Name] | G171: [Account Type] | H171: 0 | I171: 0 | J171: 0 | M171: 0
B172: Hide | C172: 10 | E172: [Name on Account] | F172: [Bank/Brokerage Name] | G172: [Account Type] | H172: 0 | I172: 0 | J172: 0 | M172: 0
B173: Hide | C173: 10 | E173: [Name on Account] | F173: [Bank/Brokerage Name] | G173: [Account Type] | H173: 0 | I173: 0 | J173: 0 | M173: 0
B174: Hide | C174: 10 | E174: [Name on Account] | F174: [Bank/Brokerage Name] | G174: [Account Type] | H174: 0 | I174: 0 | J174: 0 | M174: 0
B175: Hide | C175: 10 | E175: [Name on Account] | F175: [Bank/Brokerage Name] | G175: [Account Type] | H175: 0 | I175: 0 | J175: 0 | M175: 0
B176: Hide | C176: 10 | H176: =SUM(H166:H175) -> 0 | I176: =SUM(I166:I175) -> 0 | J176: =SUM(J166:J175) -> 0 | K176: =AVERAGE(H176:J176) -> 0 | M176: =SUM(M166:M175) -> 0 | O176: 0
B177: Hide | C177: 10 | P177: Comments
B178: Hide | C178: 10 | K178: Percentage of CFS Liquidity | L178: =IFERROR((K176+M176)/O176,0) -> 0

Sheet Example
E1: Liquidity Verification - Statement Details | G1: Key: | H1: Enter Data | I1: Do Not Fill In | J1: Auto-Calculated | M1: Publication Date: | N1: 2025-12-16
E2: [If more than 10 Key Borrower Principals (KBP) require verification, use a second worksheet]
E3: Notes: | F3: If Percentage of Certified Financial Statement (CFS) Liquidity < 75% this is considered a material deviation and additional explanation (including rationale for acceptability) is required in the Comments field
F4: When summarizing the statement information, enter either the 3 months of liquidity information or the Training 12-month information for each account, depending on the format of the information received (Note the "[OR]" below).
E6: Input # KBPs (1-10) | F6: 3
B9: Show/Hide
B10: =IF(C10<=$F$6,"Show","Hide") -> Show | C10: 1 | M10: Trailing 12 Months (dated within 60 days of package submission)
B11: Show | C11: 1 | D11: KBP 1 | E11: ABC Ventures LLC | H11: 3 consecutive months (most recent dated within 60 days of package submission) | L11: [ OR ] | P11: Notes
B12: Show | C12: 1 | E12: Bank / Brokerage Statements | H12: 2025-10-30 | I12: 2025-09-30 | J12: 2025-08-31 | K12: AVERAGE | M12: [DATE] | N12: Certified Financial Statement | O12: 2025-09-30
B13: Show | C13: 1 | E13: ABC Ventures LLC | F13: Wells Fargo | G13: Checking | H13: 2000000 | I13: 1500000 | J13: 1800000 | M13: 0
B14: Show | C14: 1 | E14: ABC Ventures LLC | F14: Vanguard | G14: Brokerage | H14: 100000 | I14: 98000 | J14: 102000 | M14: 0
B15: Show | C15: 1 | E15: ABC Holdings LP | F15: Chase | G15: Checking | H15: 300000 | I15: 180000 | J15: 222000 | M15: 0
B16: Show | C16: 1 | E16: [Name on Account] | F16: [Bank/Brokerage Name] | G16: [Account Type] | H16: 0 | I16: 0 | J16: 0 | M16: 0
B17: Show | C17: 1 | E17: [Name on Account] | F17: [Bank/Brokerage Name] | G17: [Account Type] | H17: 0 | I17: 0 | J17: 0 | M17: 0
B18: Show | C18: 1 | E18: [Name on Account] | F18: [Bank/Brokerage Name] | G18: [Account Type] | H18: 0 | I18: 0 | J18: 0 | M18: 0
B19: Show | C19: 1 | E19: [Name on Account] | F19: [Bank/Brokerage Name] | G19: [Account Type] | H19: 0 | I19: 0 | J19: 0 | M19: 0
B20: Show | C20: 1 | E20: [Name on Account] | F20: [Bank/Brokerage Name] | G20: [Account Type] | H20: 0 | I20: 0 | J20: 0 | M20: 0
B21: Show | C21: 1 | E21: [Name on Account] | F21: [Bank/Brokerage Name] | G21: [Account Type] | H21: 0 | I21: 0 | J21: 0 | M21: 0
B22: Show | C22: 1 | E22: [Name on Account] | F22: [Bank/Brokerage Name] | G22: [Account Type] | H22: 0 | I22: 0 | J22: 0 | M22: 0
B23: Show | C23: 1 | H23: =SUM(H13:H22) -> 2400000 | I23: =SUM(I13:I22) -> 1778000 | J23: =SUM(J13:J22) -> 2124000 | K23: =AVERAGE(H23:J23) -> 2100666.667 | M23: =SUM(M13:M22) -> 0 | O23: 2300000
B24: Show | C24: 1 | P24: Comments
B25: Show | C25: 1 | K25: Percentage of CFS Liquidity | L25: =IFERROR((K23+M23)/O23,0) -> 0.9133333333
B26: Show | C26: 1
B27: Show | C27: 2 | M27: Trailing 12 Months (dated within 60 days of package submission)
B28: Show | C28: 2 | D28: KBP 2 | E28: John Smith | H28: 3 consecutive months (most recent dated within 60 days of package submission) | L28: [ OR ] | P28: Notes
B29: Show | C29: 2 | E29: Bank / Brokerage Statements | H29: 2025-10-30 | I29: 2025-09-30 | J29: 2025-08-31 | K29: AVERAGE | M29: [DATE] | N29: Certified Financial Statement | O29: 2025-09-30
B30: Show | C30: 2 | E30: John Smith | F30: Bank of America | G30: Checking | H30: 5000 | I30: 2750 | J30: 3400 | M30: 0
B31: Show | C31: 2 | E31: John and Mary Smith | F31: Bank of America | G31: Checking | H31: 23400 | I31: 41300 | J31: 17850 | M31: 0
B32: Show | C32: 2 | E32: Trust for James Smith | F32: Fidelity | G32: Brokerage | H32: 88000 | I32: 92000 | J32: 79500 | M32: 0
B33: Show | C33: 2 | E33: [Name on Account] | F33: [Bank/Brokerage Name] | G33: [Account Type] | H33: 0 | I33: 0 | J33: 0 | M33: 0
B34: Show | C34: 2 | E34: [Name on Account] | F34: [Bank/Brokerage Name] | G34: [Account Type] | H34: 0 | I34: 0 | J34: 0 | M34: 0
B35: Show | C35: 2 | E35: [Name on Account] | F35: [Bank/Brokerage Name] | G35: [Account Type] | H35: 0 | I35: 0 | J35: 0 | M35: 0
B36: Show | C36: 2 | E36: [Name on Account] | F36: [Bank/Brokerage Name] | G36: [Account Type] | H36: 0 | I36: 0 | J36: 0 | M36: 0
B37: Show | C37: 2 | E37: [Name on Account] | F37: [Bank/Brokerage Name] | G37: [Account Type] | H37: 0 | I37: 0 | J37: 0 | M37: 0
B38: Show | C38: 2 | E38: [Name on Account] | F38: [Bank/Brokerage Name] | G38: [Account Type] | H38: 0 | I38: 0 | J38: 0 | M38: 0
B39: Show | C39: 2 | E39: [Name on Account] | F39: [Bank/Brokerage Name] | G39: [Account Type] | H39: 0 | I39: 0 | J39: 0 | M39: 0
B40: Show | C40: 2 | H40: =SUM(H30:H39) -> 116400 | I40: =SUM(I30:I39) -> 136050 | J40: =SUM(J30:J39) -> 100750 | K40: =AVERAGE(H40:J40) -> 117733.3333 | M40: =SUM(M30:M39) -> 0 | O40: 400000
B41: Show | C41: 2 | P41: Comments
B42: Show | C42: 2 | K42: Percentage of CFS Liquidity | L42: =IFERROR((K40+M40)/O40,0) -> 0.2943333333
B43: Show | C43: 2
B44: Show | C44: 3 | M44: Trailing 12 Months (dated within 60 days of package submission)
B45: Show | C45: 3 | D45: KBP 3 | E45: [Individual / Entity] | H45: 3 consecutive months (most recent dated within 60 days of package submission) | L45: [ OR ] | P45: Notes
B46: Show | C46: 3 | E46: Bank / Brokerage Statements | H46: [DATE] | I46: [DATE] | J46: [DATE] | K46: AVERAGE | M46: [DATE] | N46: Certified Financial Statement | O46: [DATE]
B47: Show | C47: 3 | E47: [Name on Account] | F47: [Bank/Brokerage Name] | G47: [Account Type] | H47: 0 | I47: 0 | J47: 0 | M47: 0
B48: Show | C48: 3 | E48: [Name on Account] | F48: [Bank/Brokerage Name] | G48: [Account Type] | H48: 0 | I48: 0 | J48: 0 | M48: 0
B49: Show | C49: 3 | E49: [Name on Account] | F49: [Bank/Brokerage Name] | G49: [Account Type] | H49: 0 | I49: 0 | J49: 0 | M49: 0
B50: Show | C50: 3 | E50: [Name on Account] | F50: [Bank/Brokerage Name] | G50: [Account Type] | H50: 0 | I50: 0 | J50: 0 | M50: 0
B51: Show | C51: 3 | E51: [Name on Account] | F51: [Bank/Brokerage Name] | G51: [Account Type] | H51: 0 | I51: 0 | J51: 0 | M51: 0
B52: Show | C52: 3 | E52: [Name on Account] | F52: [Bank/Brokerage Name] | G52: [Account Type] | H52: 0 | I52: 0 | J52: 0 | M52: 0
B53: Show | C53: 3 | E53: [Name on Account] | F53: [Bank/Brokerage Name] | G53: [Account Type] | H53: 0 | I53: 0 | J53: 0 | M53: 0
B54: Show | C54: 3 | E54: [Name on Account] | F54: [Bank/Brokerage Name] | G54: [Account Type] | H54: 0 | I54: 0 | J54: 0 | M54: 0
B55: Show | C55: 3 | E55: [Name on Account] | F55: [Bank/Brokerage Name] | G55: [Account Type] | H55: 0 | I55: 0 | J55: 0 | M55: 0
B56: Show | C56: 3 | E56: [Name on Account] | F56: [Bank/Brokerage Name] | G56: [Account Type] | H56: 0 | I56: 0 | J56: 0 | M56: 0
B57: Show | C57: 3 | H57: =SUM(H47:H56) -> 0 | I57: =SUM(I47:I56) -> 0 | J57: =SUM(J47:J56) -> 0 | K57: =AVERAGE(H57:J57) -> 0 | M57: =SUM(M47:M56) -> 0 | O57: 0
B58: Show | C58: 3 | P58: Comments
B59: Show | C59: 3 | K59: Percentage of CFS Liquidity | L59: =IFERROR((K57+M57)/O57,0) -> 0
B60: Show | C60: 3
B61: Hide | C61: 4 | M61: Trailing 12 Months (dated within 60 days of package submission)
B62: Hide | C62: 4 | D62: KBP 4 | E62: [Individual / Entity] | H62: 3 consecutive months (most recent dated within 60 days of package submission) | L62: [ OR ] | P62: Notes
B63: Hide | C63: 4 | E63: Bank / Brokerage Statements | H63: [DATE] | I63: [DATE] | J63: [DATE] | K63: AVERAGE | M63: [DATE] | N63: Certified Financial Statement | O63: [DATE]
B64: Hide | C64: 4 | E64: [Name on Account] | F64: [Bank/Brokerage Name] | G64: [Account Type] | H64: 0 | I64: 0 | J64: 0 | M64: 0
B65: Hide | C65: 4 | E65: [Name on Account] | F65: [Bank/Brokerage Name] | G65: [Account Type] | H65: 0 | I65: 0 | J65: 0 | M65: 0
B66: Hide | C66: 4 | E66: [Name on Account] | F66: [Bank/Brokerage Name] | G66: [Account Type] | H66: 0 | I66: 0 | J66: 0 | M66: 0
B67: Hide | C67: 4 | E67: [Name on Account] | F67: [Bank/Brokerage Name] | G67: [Account Type] | H67: 0 | I67: 0 | J67: 0 | M67: 0
B68: Hide | C68: 4 | E68: [Name on Account] | F68: [Bank/Brokerage Name] | G68: [Account Type] | H68: 0 | I68: 0 | J68: 0 | M68: 0
B69: Hide | C69: 4 | E69: [Name on Account] | F69: [Bank/Brokerage Name] | G69: [Account Type] | H69: 0 | I69: 0 | J69: 0 | M69: 0
B70: Hide | C70: 4 | E70: [Name on Account] | F70: [Bank/Brokerage Name] | G70: [Account Type] | H70: 0 | I70: 0 | J70: 0 | M70: 0
B71: Hide | C71: 4 | E71: [Name on Account] | F71: [Bank/Brokerage Name] | G71: [Account Type] | H71: 0 | I71: 0 | J71: 0 | M71: 0
B72: Hide | C72: 4 | E72: [Name on Account] | F72: [Bank/Brokerage Name] | G72: [Account Type] | H72: 0 | I72: 0 | J72: 0 | M72: 0
B73: Hide | C73: 4 | E73: [Name on Account] | F73: [Bank/Brokerage Name] | G73: [Account Type] | H73: 0 | I73: 0 | J73: 0 | M73: 0
B74: =IF(C74<=$F$6,"Show","Hide") -> Hide | C74: 4 | H74: =SUM(H64:H73) -> 0 | I74: =SUM(I64:I73) -> 0 | J74: =SUM(J64:J73) -> 0 | K74: =AVERAGE(H74:J74) -> 0 | M74: =SUM(M64:M73) -> 0 | O74: 0
B75: Hide | C75: 4 | P75: Comments
B76: Hide | C76: 4 | K76: Percentage of CFS Liquidity | L76: =IFERROR((K74+M74)/O74,0) -> 0
B77: Hide | C77: 4
B78: Hide | C78: 5 | M78: Trailing 12 Months (dated within 60 days of package submission)
B79: Hide | C79: 5 | D79: KBP 5 | E79: [Individual / Entity] | H79: 3 consecutive months (most recent dated within 60 days of package submission) | L79: [ OR ] | P79: Notes
B80: Hide | C80: 5 | E80: Bank / Brokerage Statements | H80: [DATE] | I80: [DATE] | J80: [DATE] | K80: AVERAGE | M80: [DATE] | N80: Certified Financial Statement | O80: [DATE]
B81: Hide | C81: 5 | E81: [Name on Account] | F81: [Bank/Brokerage Name] | G81: [Account Type] | H81: 0 | I81: 0 | J81: 0 | M81: 0
B82: Hide | C82: 5 | E82: [Name on Account] | F82: [Bank/Brokerage Name] | G82: [Account Type] | H82: 0 | I82: 0 | J82: 0 | M82: 0
B83: Hide | C83: 5 | E83: [Name on Account] | F83: [Bank/Brokerage Name] | G83: [Account Type] | H83: 0 | I83: 0 | J83: 0 | M83: 0
B84: Hide | C84: 5 | E84: [Name on Account] | F84: [Bank/Brokerage Name] | G84: [Account Type] | H84: 0 | I84: 0 | J84: 0 | M84: 0
B85: Hide | C85: 5 | E85: [Name on Account] | F85: [Bank/Brokerage Name] | G85: [Account Type] | H85: 0 | I85: 0 | J85: 0 | M85: 0
B86: Hide | C86: 5 | E86: [Name on Account] | F86: [Bank/Brokerage Name] | G86: [Account Type] | H86: 0 | I86: 0 | J86: 0 | M86: 0
B87: Hide | C87: 5 | E87: [Name on Account] | F87: [Bank/Brokerage Name] | G87: [Account Type] | H87: 0 | I87: 0 | J87: 0 | M87: 0
B88: Hide | C88: 5 | E88: [Name on Account] | F88: [Bank/Brokerage Name] | G88: [Account Type] | H88: 0 | I88: 0 | J88: 0 | M88: 0
B89: Hide | C89: 5 | E89: [Name on Account] | F89: [Bank/Brokerage Name] | G89: [Account Type] | H89: 0 | I89: 0 | J89: 0 | M89: 0
B90: Hide | C90: 5 | E90: [Name on Account] | F90: [Bank/Brokerage Name] | G90: [Account Type] | H90: 0 | I90: 0 | J90: 0 | M90: 0
B91: Hide | C91: 5 | H91: =SUM(H81:H90) -> 0 | I91: =SUM(I81:I90) -> 0 | J91: =SUM(J81:J90) -> 0 | K91: =AVERAGE(H91:J91) -> 0 | M91: =SUM(M81:M90) -> 0 | O91: 0
B92: Hide | C92: 5 | P92: Comments
B93: Hide | C93: 5 | K93: Percentage of CFS Liquidity | L93: =IFERROR((K91+M91)/O91,0) -> 0
B94: Hide | C94: 5
B95: Hide | C95: 6 | M95: Trailing 12 Months (dated within 60 days of package submission)
B96: Hide | C96: 6 | D96: KBP 6 | E96: [Individual / Entity] | H96: 3 consecutive months (most recent dated within 60 days of package submission) | L96: [ OR ] | P96: Notes
B97: Hide | C97: 6 | E97: Bank / Brokerage Statements | H97: [DATE] | I97: [DATE] | J97: [DATE] | K97: AVERAGE | M97: [DATE] | N97: Certified Financial Statement | O97: [DATE]
B98: Hide | C98: 6 | E98: [Name on Account] | F98: [Bank/Brokerage Name] | G98: [Account Type] | H98: 0 | I98: 0 | J98: 0 | M98: 0
B99: Hide | C99: 6 | E99: [Name on Account] | F99: [Bank/Brokerage Name] | G99: [Account Type] | H99: 0 | I99: 0 | J99: 0 | M99: 0
B100: Hide | C100: 6 | E100: [Name on Account] | F100: [Bank/Brokerage Name] | G100: [Account Type] | H100: 0 | I100: 0 | J100: 0 | M100: 0
B101: Hide | C101: 6 | E101: [Name on Account] | F101: [Bank/Brokerage Name] | G101: [Account Type] | H101: 0 | I101: 0 | J101: 0 | M101: 0
B102: Hide | C102: 6 | E102: [Name on Account] | F102: [Bank/Brokerage Name] | G102: [Account Type] | H102: 0 | I102: 0 | J102: 0 | M102: 0
B103: Hide | C103: 6 | E103: [Name on Account] | F103: [Bank/Brokerage Name] | G103: [Account Type] | H103: 0 | I103: 0 | J103: 0 | M103: 0
B104: Hide | C104: 6 | E104: [Name on Account] | F104: [Bank/Brokerage Name] | G104: [Account Type] | H104: 0 | I104: 0 | J104: 0 | M104: 0
B105: Hide | C105: 6 | E105: [Name on Account] | F105: [Bank/Brokerage Name] | G105: [Account Type] | H105: 0 | I105: 0 | J105: 0 | M105: 0
B106: Hide | C106: 6 | E106: [Name on Account] | F106: [Bank/Brokerage Name] | G106: [Account Type] | H106: 0 | I106: 0 | J106: 0 | M106: 0
B107: Hide | C107: 6 | E107: [Name on Account] | F107: [Bank/Brokerage Name] | G107: [Account Type] | H107: 0 | I107: 0 | J107: 0 | M107: 0
B108: Hide | C108: 6 | H108: =SUM(H98:H107) -> 0 | I108: =SUM(I98:I107) -> 0 | J108: =SUM(J98:J107) -> 0 | K108: =AVERAGE(H108:J108) -> 0 | M108: =SUM(M98:M107) -> 0 | O108: 0
B109: Hide | C109: 6 | P109: Comments
B110: Hide | C110: 6 | K110: Percentage of CFS Liquidity | L110: =IFERROR((K108+M108)/O108,0) -> 0
B111: Hide | C111: 6
B112: Hide | C112: 7 | M112: Trailing 12 Months (dated within 60 days of package submission)
B113: Hide | C113: 7 | D113: KBP 7 | E113: [Individual / Entity] | H113: 3 consecutive months (most recent dated within 60 days of package submission) | L113: [ OR ] | P113: Notes
B114: Hide | C114: 7 | E114: Bank / Brokerage Statements | H114: [DATE] | I114: [DATE] | J114: [DATE] | K114: AVERAGE | M114: [DATE] | N114: Certified Financial Statement | O114: [DATE]
B115: Hide | C115: 7 | E115: [Name on Account] | F115: [Bank/Brokerage Name] | G115: [Account Type] | H115: 0 | I115: 0 | J115: 0 | M115: 0
B116: Hide | C116: 7 | E116: [Name on Account] | F116: [Bank/Brokerage Name] | G116: [Account Type] | H116: 0 | I116: 0 | J116: 0 | M116: 0
B117: Hide | C117: 7 | E117: [Name on Account] | F117: [Bank/Brokerage Name] | G117: [Account Type] | H117: 0 | I117: 0 | J117: 0 | M117: 0
B118: Hide | C118: 7 | E118: [Name on Account] | F118: [Bank/Brokerage Name] | G118: [Account Type] | H118: 0 | I118: 0 | J118: 0 | M118: 0
B119: Hide | C119: 7 | E119: [Name on Account] | F119: [Bank/Brokerage Name] | G119: [Account Type] | H119: 0 | I119: 0 | J119: 0 | M119: 0
B120: Hide | C120: 7 | E120: [Name on Account] | F120: [Bank/Brokerage Name] | G120: [Account Type] | H120: 0 | I120: 0 | J120: 0 | M120: 0
B121: Hide | C121: 7 | E121: [Name on Account] | F121: [Bank/Brokerage Name] | G121: [Account Type] | H121: 0 | I121: 0 | J121: 0 | M121: 0
B122: Hide | C122: 7 | E122: [Name on Account] | F122: [Bank/Brokerage Name] | G122: [Account Type] | H122: 0 | I122: 0 | J122: 0 | M122: 0
B123: Hide | C123: 7 | E123: [Name on Account] | F123: [Bank/Brokerage Name] | G123: [Account Type] | H123: 0 | I123: 0 | J123: 0 | M123: 0
B124: Hide | C124: 7 | E124: [Name on Account] | F124: [Bank/Brokerage Name] | G124: [Account Type] | H124: 0 | I124: 0 | J124: 0 | M124: 0
B125: Hide | C125: 7 | H125: =SUM(H115:H124) -> 0 | I125: =SUM(I115:I124) -> 0 | J125: =SUM(J115:J124) -> 0 | K125: =AVERAGE(H125:J125) -> 0 | M125: =SUM(M115:M124) -> 0 | O125: 0
B126: Hide | C126: 7 | P126: Comments
B127: Hide | C127: 7 | K127: Percentage of CFS Liquidity | L127: =IFERROR((K125+M125)/O125,0) -> 0
B128: Hide | C128: 7
B129: Hide | C129: 8 | M129: Trailing 12 Months (dated within 60 days of package submission)
B130: Hide | C130: 8 | D130: KBP 8 | E130: [Individual / Entity] | H130: 3 consecutive months (most recent dated within 60 days of package submission) | L130: [ OR ] | P130: Notes
B131: Hide | C131: 8 | E131: Bank / Brokerage Statements | H131: [DATE] | I131: [DATE] | J131: [DATE] | K131: AVERAGE | M131: [DATE] | N131: Certified Financial Statement | O131: [DATE]
B132: Hide | C132: 8 | E132: [Name on Account] | F132: [Bank/Brokerage Name] | G132: [Account Type] | H132: 0 | I132: 0 | J132: 0 | M132: 0
B133: Hide | C133: 8 | E133: [Name on Account] | F133: [Bank/Brokerage Name] | G133: [Account Type] | H133: 0 | I133: 0 | J133: 0 | M133: 0
B134: Hide | C134: 8 | E134: [Name on Account] | F134: [Bank/Brokerage Name] | G134: [Account Type] | H134: 0 | I134: 0 | J134: 0 | M134: 0
B135: Hide | C135: 8 | E135: [Name on Account] | F135: [Bank/Brokerage Name] | G135: [Account Type] | H135: 0 | I135: 0 | J135: 0 | M135: 0
B136: Hide | C136: 8 | E136: [Name on Account] | F136: [Bank/Brokerage Name] | G136: [Account Type] | H136: 0 | I136: 0 | J136: 0 | M136: 0
B137: Hide | C137: 8 | E137: [Name on Account] | F137: [Bank/Brokerage Name] | G137: [Account Type] | H137: 0 | I137: 0 | J137: 0 | M137: 0
B138: =IF(C138<=$F$6,"Show","Hide") -> Hide | C138: 8 | E138: [Name on Account] | F138: [Bank/Brokerage Name] | G138: [Account Type] | H138: 0 | I138: 0 | J138: 0 | M138: 0
B139: Hide | C139: 8 | E139: [Name on Account] | F139: [Bank/Brokerage Name] | G139: [Account Type] | H139: 0 | I139: 0 | J139: 0 | M139: 0
B140: Hide | C140: 8 | E140: [Name on Account] | F140: [Bank/Brokerage Name] | G140: [Account Type] | H140: 0 | I140: 0 | J140: 0 | M140: 0
B141: Hide | C141: 8 | E141: [Name on Account] | F141: [Bank/Brokerage Name] | G141: [Account Type] | H141: 0 | I141: 0 | J141: 0 | M141: 0
B142: Hide | C142: 8 | H142: =SUM(H132:H141) -> 0 | I142: =SUM(I132:I141) -> 0 | J142: =SUM(J132:J141) -> 0 | K142: =AVERAGE(H142:J142) -> 0 | M142: =SUM(M132:M141) -> 0 | O142: 0
B143: Hide | C143: 8 | P143: Comments
B144: Hide | C144: 8 | K144: Percentage of CFS Liquidity | L144: =IFERROR((K142+M142)/O142,0) -> 0
B145: Hide | C145: 8
B146: Hide | C146: 9 | M146: Trailing 12 Months (dated within 60 days of package submission)
B147: Hide | C147: 9 | D147: KBP 9 | E147: [Individual / Entity] | H147: 3 consecutive months (most recent dated within 60 days of package submission) | L147: [ OR ] | P147: Notes
B148: Hide | C148: 9 | E148: Bank / Brokerage Statements | H148: [DATE] | I148: [DATE] | J148: [DATE] | K148: AVERAGE | M148: [DATE] | N148: Certified Financial Statement | O148: [DATE]
B149: Hide | C149: 9 | E149: [Name on Account] | F149: [Bank/Brokerage Name] | G149: [Account Type] | H149: 0 | I149: 0 | J149: 0 | M149: 0
B150: Hide | C150: 9 | E150: [Name on Account] | F150: [Bank/Brokerage Name] | G150: [Account Type] | H150: 0 | I150: 0 | J150: 0 | M150: 0
B151: Hide | C151: 9 | E151: [Name on Account] | F151: [Bank/Brokerage Name] | G151: [Account Type] | H151: 0 | I151: 0 | J151: 0 | M151: 0
B152: Hide | C152: 9 | E152: [Name on Account] | F152: [Bank/Brokerage Name] | G152: [Account Type] | H152: 0 | I152: 0 | J152: 0 | M152: 0
B153: Hide | C153: 9 | E153: [Name on Account] | F153: [Bank/Brokerage Name] | G153: [Account Type] | H153: 0 | I153: 0 | J153: 0 | M153: 0
B154: Hide | C154: 9 | E154: [Name on Account] | F154: [Bank/Brokerage Name] | G154: [Account Type] | H154: 0 | I154: 0 | J154: 0 | M154: 0
B155: Hide | C155: 9 | E155: [Name on Account] | F155: [Bank/Brokerage Name] | G155: [Account Type] | H155: 0 | I155: 0 | J155: 0 | M155: 0
B156: Hide | C156: 9 | E156: [Name on Account] | F156: [Bank/Brokerage Name] | G156: [Account Type] | H156: 0 | I156: 0 | J156: 0 | M156: 0
B157: Hide | C157: 9 | E157: [Name on Account] | F157: [Bank/Brokerage Name] | G157: [Account Type] | H157: 0 | I157: 0 | J157: 0 | M157: 0
B158: Hide | C158: 9 | E158: [Name on Account] | F158: [Bank/Brokerage Name] | G158: [Account Type] | H158: 0 | I158: 0 | J158: 0 | M158: 0
B159: Hide | C159: 9 | H159: =SUM(H149:H158) -> 0 | I159: =SUM(I149:I158) -> 0 | J159: =SUM(J149:J158) -> 0 | K159: =AVERAGE(H159:J159) -> 0 | M159: =SUM(M149:M158) -> 0 | O159: 0
B160: Hide | C160: 9 | P160: Comments
B161: Hide | C161: 9 | K161: Percentage of CFS Liquidity | L161: =IFERROR((K159+M159)/O159,0) -> 0
B162: Hide | C162: 9
B163: Hide | C163: 10 | M163: Trailing 12 Months (dated within 60 days of package submission)
B164: Hide | C164: 10 | D164: KBP 10 | E164: [Individual / Entity] | H164: 3 consecutive months (most recent dated within 60 days of package submission) | L164: [ OR ] | P164: Notes
B165: Hide | C165: 10 | E165: Bank / Brokerage Statements | H165: [DATE] | I165: [DATE] | J165: [DATE] | K165: AVERAGE | M165: [DATE] | N165: Certified Financial Statement | O165: [DATE]
B166: Hide | C166: 10 | E166: [Name on Account] | F166: [Bank/Brokerage Name] | G166: [Account Type] | H166: 0 | I166: 0 | J166: 0 | M166: 0
B167: Hide | C167: 10 | E167: [Name on Account] | F167: [Bank/Brokerage Name] | G167: [Account Type] | H167: 0 | I167: 0 | J167: 0 | M167: 0
B168: Hide | C168: 10 | E168: [Name on Account] | F168: [Bank/Brokerage Name] | G168: [Account Type] | H168: 0 | I168: 0 | J168: 0 | M168: 0
B169: Hide | C169: 10 | E169: [Name on Account] | F169: [Bank/Brokerage Name] | G169: [Account Type] | H169: 0 | I169: 0 | J169: 0 | M169: 0
B170: Hide | C170: 10 | E170: [Name on Account] | F170: [Bank/Brokerage Name] | G170: [Account Type] | H170: 0 | I170: 0 | J170: 0 | M170: 0
B171: Hide | C171: 10 | E171: [Name on Account] | F171: [Bank/Brokerage Name] | G171: [Account Type] | H171: 0 | I171: 0 | J171: 0 | M171: 0
B172: Hide | C172: 10 | E172: [Name on Account] | F172: [Bank/Brokerage Name] | G172: [Account Type] | H172: 0 | I172: 0 | J172: 0 | M172: 0
B173: Hide | C173: 10 | E173: [Name on Account] | F173: [Bank/Brokerage Name] | G173: [Account Type] | H173: 0 | I173: 0 | J173: 0 | M173: 0
B174: Hide | C174: 10 | E174: [Name on Account] | F174: [Bank/Brokerage Name] | G174: [Account Type] | H174: 0 | I174: 0 | J174: 0 | M174: 0
B175: Hide | C175: 10 | E175: [Name on Account] | F175: [Bank/Brokerage Name] | G175: [Account Type] | H175: 0 | I175: 0 | J175: 0 | M175: 0
B176: Hide | C176: 10 | H176: =SUM(H166:H175) -> 0 | I176: =SUM(I166:I175) -> 0 | J176: =SUM(J166:J175) -> 0 | K176: =AVERAGE(H176:J176) -> 0 | M176: =SUM(M166:M175) -> 0 | O176: 0
B177: Hide | C177: 10 | P177: Comments
B178: Hide | C178: 10 | K178: Percentage of CFS Liquidity | L178: =IFERROR((K176+M176)/O176,0) -> 0

Sheet Instructions
J1: Publication Date: | K1: 2025-12-16
B2: Per the Multifamily Seller/Servicer Guide - Glossary:
B4: ACCEPTABLE
B5: Cash & Cash Equivalents
B6: Treasury Bills
B7: Money market investments
B8: Certificates of deposit with maturities of one year or less
B9: Marketable securities (such as stocks, bonds mutual funds)
B10: Must be measured in US dollars
B12: NOT ACCEPTABLE
B13: Restricted Assets
B14: Pledged Accounts
B15: Stocks or bonds for a company or municipality in default or bankruptcy
B17: Additional Instructions/ Guidance:
B18: 1. Refer to Guide language in Chapter 55/ 55SBL for additional instructions
B19: 2. If any Individual or Entity name other than the KBP name is listed as an account holder in Column B, then additional explanation will be required as to how the KBP has access to those funds and why these are reported on the KBP's certified financial statement.
